{"text_format":"3","workbook":"xlsx","n_sheets":2,"sheets":["فاتورة الدفع","إعداد الشركة"],"not_rendered":{"images":1,"defined_names":27},"read":"whole","date_system":"1900"}

{"sheet":"فاتورة الدفع","index":0,"n_rows":35,"n_cols":7,"rows_kept":35,"merged":[[1,1,1,2],[1,3,2,4],[1,6,2,6],[3,3,3,4],[4,3,4,4],[5,3,5,4],[23,1,23,3],[24,1,24,3],[25,1,25,3],[26,1,26,3],[34,1,34,4]]}
[null,"الفاتورة","0005"]
[null,{"$f":"TODAY()","v":"2018-07-13"},null,{"$f":"InvoiceTotal","v":79.65},null," ","إعداد الشركة"]
[null,"استحقاق الدفع بواسطة:",{"$f":"TODAY()+15","v":"2018-07-28"},null,null," "]
[null,"ضمير رفاعي",null,"ADVENTURE WORKS"]
[null,"Fabrikam, Inc.",null,"23456 شارع الأزهار"]
[null,"1234 الشارع الأول",null,"جدة، السعودية 09876"]
[null,"الرياض، أو 12345"]
[null,"الكمية","التفاصيل","سعر الوحدة","إجمالي الأسطر"]
[null,2,"عناصر واجهة المستخدم",14.95,{"$f":"IFERROR(تفاصيل_الفاتورة[[#This Row],[سعر الوحدة]]*تفاصيل_الفاتورة[[#This Row],[الكمية]],\"\")","v":{"v":29.9,"d":"29.90"}}]
[null,5,"الغسالات",9.95,{"$f":"IFERROR(تفاصيل_الفاتورة[[#This Row],[سعر الوحدة]]*تفاصيل_الفاتورة[[#This Row],[الكمية]],\"\")","v":49.75}]
[{"$nulls":4},{"$f":"IFERROR(تفاصيل_الفاتورة[[#This Row],[سعر الوحدة]]*تفاصيل_الفاتورة[[#This Row],[الكمية]],\"\")","v":0}]
[{"$nulls":4},{"$f":"IFERROR(تفاصيل_الفاتورة[[#This Row],[سعر الوحدة]]*تفاصيل_الفاتورة[[#This Row],[الكمية]],\"\")","v":0}]
[{"$nulls":4},{"$f":"IFERROR(تفاصيل_الفاتورة[[#This Row],[سعر الوحدة]]*تفاصيل_الفاتورة[[#This Row],[الكمية]],\"\")","v":0}]
[{"$nulls":4},{"$f":"IFERROR(تفاصيل_الفاتورة[[#This Row],[سعر الوحدة]]*تفاصيل_الفاتورة[[#This Row],[الكمية]],\"\")","v":0}]
[{"$nulls":4},{"$f":"IFERROR(تفاصيل_الفاتورة[[#This Row],[سعر الوحدة]]*تفاصيل_الفاتورة[[#This Row],[الكمية]],\"\")","v":0}]
[{"$nulls":4},{"$f":"IFERROR(تفاصيل_الفاتورة[[#This Row],[سعر الوحدة]]*تفاصيل_الفاتورة[[#This Row],[الكمية]],\"\")","v":0}]
[{"$nulls":4},{"$f":"IFERROR(تفاصيل_الفاتورة[[#This Row],[سعر الوحدة]]*تفاصيل_الفاتورة[[#This Row],[الكمية]],\"\")","v":0}]
[{"$nulls":4},{"$f":"IFERROR(تفاصيل_الفاتورة[[#This Row],[سعر الوحدة]]*تفاصيل_الفاتورة[[#This Row],[الكمية]],\"\")","v":0}]
[{"$nulls":4},{"$f":"IFERROR(تفاصيل_الفاتورة[[#This Row],[سعر الوحدة]]*تفاصيل_الفاتورة[[#This Row],[الكمية]],\"\")","v":0}]
[{"$nulls":4},{"$f":"IFERROR(تفاصيل_الفاتورة[[#This Row],[سعر الوحدة]]*تفاصيل_الفاتورة[[#This Row],[الكمية]],\"\")","v":0}]
[{"$nulls":4},{"$f":"IFERROR(تفاصيل_الفاتورة[[#This Row],[سعر الوحدة]]*تفاصيل_الفاتورة[[#This Row],[الكمية]],\"\")","v":0}]
[{"$nulls":4},{"$f":"IFERROR(تفاصيل_الفاتورة[[#This Row],[سعر الوحدة]]*تفاصيل_الفاتورة[[#This Row],[الكمية]],\"\")","v":0}]
[{"$nulls":4},{"$f":"IFERROR(تفاصيل_الفاتورة[[#This Row],[سعر الوحدة]]*تفاصيل_الفاتورة[[#This Row],[الكمية]],\"\")","v":0}]
[null,"الخصم"]
[null,"صافي الإجمالي",null,null,{"$f":"SUM(تفاصيل_الفاتورة[إجمالي الأسطر])-E24","v":{"v":79.65,"d":"ر.س.‏ 79.65"}}]
[null,"الضريبة"]
[null,{"$f":"\"الإجمالي \" & REPT(CompanySetup_YourCurrencyAbbreviation,LEN(CompanySetup_YourCurrencyAbbreviation)>0)","v":"الإجمالي ر.س."},null,null,{"$f":"IFERROR(E25+E26, \"\")","v":{"v":79.65,"d":"ر.س.‏ 79.65"}}]
[null,"تفاصيل الدفع",null,null,"معلومات أخرى"]
[null,"اسم المستفيد:",{"$f":" CompanySetup_BankBeneficiaryName","v":"Adventure Works"},null,{"$f":"IFERROR(CompanySetup_YourName,\"\")","v":""}]
[null,"اسم البنك:",{"$f":"CompanySetup_BankName","v":"Woodgrove Bank"},null,{"$f":"IFERROR(\"الهاتف: \" & CompanySetup_YourPhone,\"\")","v":"الهاتف: 425-555-0150"}]
[null,"عنوان البنك:",{"$f":"CompanySetup_BankAddress","v":"234 الشارع الرئيسي، جدة، السعودية 09876"},null,{"$f":"IFERROR(\"الفاكس: \" & CompanySetup_YourFax,\"\")","v":"الفاكس: 425-555-0151"}]
[null,"رقم الحساب:",{"$f":"CompanySetup_BankAccount","v":1234567},null,{"$f":"IFERROR(CompanySetup_YourURL,\"\")","v":"Adventure-Works.com"}]
[null,"رقم التوجيه (رمز SWIFT):",{"$f":"CompanySetup_BankRouting","v":9876543210},null,{"$f":"IFERROR(CompanySetup_YourEmail,\"\")","v":"Accounting@Adventure-Works.com"}]
[null,"مرجع الدفع:",{"$f":"InvoiceNumberDisplay","v":"0005"},null,{"$f":"IFERROR(IF(LEN(Client_PO),\"Contract/PO: \" & Client_PO,\"\"),\"\")","v":""}]
[null,{"$f":"UPPER(\"يجب أن يتم الدفع عن طريق التحويل البنكي أو من خلال شيك يدفع إلى \" & CompanySetup_CheckPayee& \".\")","v":"يجب أن يتم الدفع عن طريق التحويل البنكي أو من خلال شيك يدفع إلى ADVENTURE WORKS."}]

{"sheet":"إعداد الشركة","index":1,"n_rows":20,"n_cols":5,"rows_kept":20}
[null,"إعداد الشركة"]
[null,"تفاصيل الشركة المُصدرة للفاتورة","القيمة",null,"فاتورة الدفع"]
[null,"الاسم","جميل زاهر"]
[null,"اسم الشركة","ADVENTURE WORKS"]
[null,"سطر العنوان 1","23456 شارع الأزهار"]
[null,"سطر العنوان 2","جدة، السعودية 09876"]
[null,"سطر العنوان 3"]
[null,"سطر العنوان 4"]
[null,"سطر العنوان 5"]
[null,"الهاتف","425-555-0150"]
[null,"الفاكس","425-555-0151"]
[null,"موقع الويب","Adventure-Works.com"]
[null,"البريد الإلكتروني","Accounting@Adventure-Works.com"]
[null,"اختصار العملة","ر.س."]
[null,"اسم المستفيد من التحويل المصرفي","Adventure Works"]
[null,"اسم البنك","Woodgrove Bank"]
[null,"عنوان البنك","234 الشارع الرئيسي، جدة، السعودية 09876"]
[null,"رقم الحساب",1234567]
[null,"رقم التوجيه (رمز SWIFT)",9876543210]
[null,"تدفع الشيكات إلى","Adventure Works"]